[Event "Czech Championship 2022"]
[Site "Usti nad Labem"]
[Date "2022.05.20"]
[Round "7.10"]
[White "Krivanek, Vladimir"]
[Black "Sorm, Daniel"]
[Result "0-1"]
[ECO "A00"]
[WhiteElo "2180"]
[BlackElo "2306"]
[Annotator "TA"]
[PlyCount "78"]
[EventDate "2022.05.12"]
[EventType "swiss"]
[EventCountry "CZE"]
[SourceTitle "playchess.com"]
[Source "ChessBase"]
[SourceQuality "1"]
[TimeControl "40/5400+30:1800+30"]

{[%evp 9,78,-25,-29,-72,-68,-76,-75,-194,-177,-257,-256,-263,-274,-358,-246,-247,-207,-263,-263,-267,-265,-272,-258,-265,-268,-262,-272,-274,-267,-271,-259,-274,-270,-393,-275,-352,-316,-584,-426,-623,-404,-412,-342,-311,-263,-332,-264,-335,-195,-517,-400,-394,-370,-521,-520,-519,-479,-531,-512,-529,-504,-564,-558,-518,-500,-615,-589,-769,-501,-972,-960]} 1. Nc3 {[%emt 0:01:09]} d5 {[%emt 0:01:23][%cal Bd7d5,Bd5d4,Bd4d3][%mdl 32]} 2. e4 {[%emt 0:00:10]} d4 {[%emt 0:00:08]} 3. Nce2 {[%emt 0:00:05]} e5 {[%emt 0:00:11]} 4. Ng3 {[%emt 0:00:09]} Be6 {[%emt 0:00:23]} 5. Nf3 {[%emt 0:00:18]} f6 {[%emt 0:00:09]} 6. c3 {[%emt 0:00:12] [#] A00: Irregular Openings.} d3 $1 {[%emt 0:00:23]} 7. Nh4 {[%emt 0:08:02] [#]} c5 $1 {[%emt 0:01:32] Active counter play!} 8. b3 {[%emt 0:05:23] [#]} (8. Qa4+ $17 Nc6 9. Qb5) 8... g6 $146 {[%emt 0:09:06]} ({Predecessor:} 8... Nc6 9. Qf3 c4 10. bxc4 Bxc4 11. Nhf5 Nge7 12. Ne3 b5 13. Nd1 Qd7 14. a4 Ng6 15. axb5 Bxb5 {0-1 (32) Grabenhorst,J-Blees,A (2420) Hamburg 1995}) 9. Rb1 {[%emt 0:14:38]} (9. Ba3 $142 Qd6 10. Qb1) 9... Qd7 {[%emt 0:04:07]} 10. c4 {[%emt 0:25:07]} Nc6 {[%emt 0:04:52]} 11. a3 {[%emt 0:02:56]} O-O-O {[%emt 0:06:40]} 12. Bb2 {[%emt 0:02:13]} Nh6 {[%emt 0:10:14]} 13. Rc1 {[%emt 0:04:26]} f5 {[%emt 0:04:53][%cal Bf6f5,Bf5f4][%mdl 32]} 14. Rc3 {[%emt 0:02:10]} f4 {[%emt 0:04:11]} 15. Rxd3 {[%emt 0:01:56]} Qe7 {[%emt 0:00:11] ...Rxd3 is the strong threat.} 16. Rxd8+ {[%emt 0:04:28]} Qxd8 {[%emt 0:00:17]} 17. Nf3 {[%emt 0:01:15][%cal Of3e5]} fxg3 {[%emt 0:00:10]} 18. hxg3 {[%emt 0:01:08]} Ng4 {[%emt 0:00:33]} 19. Be2 {[%emt 0:00:26]} Qf6 {[%emt 0:02:24]} 20. O-O {[%emt 0:01:37]} h5 {[%emt 0:01:35]} 21. b4 {[%emt 0:03:22]} (21. Nh4 $142) 21... Rh7 {[%emt 0:05:07]} 22. Qa4 {[%emt 0:01:40]} Kb8 {[%emt 0:04:59][%cal Rc5b4]} 23. Rb1 $2 {[%emt 0:01:51]} (23. Bc3) 23... Bc8 {[%emt 0:04:41] Strongly threatening ...h4.} 24. Qb5 {[%emt 0:04:03]} (24. Rf1 $142 cxb4 25. axb4 Bxb4 26. Bd1) 24... Rd7 {[%emt 0:06:11][%cal Od7d2] Hoping for ...Rxd2!} 25. Bc3 {[%emt 0:01:54]} Nd4 {[%emt 0:10:54]} 26. Bxd4 {[%emt 0:00:44]} exd4 {[%emt 0:00:09]} ({Not} 26... cxd4 $2 27. c5 $19) 27. bxc5 {[%emt 0:01:51]} Rc7 {[%emt 0:02:19] Inhibits c6.} 28. c6 {[%emt 0:02:50]} Qxc6 {[%emt 0:06:19]} (28... Rxc6 $142 29. Qd5 Rb6 30. Rxb6 Qxb6) 29. Qb3 {[%emt 0:04:40] Against Rb6} (29. Qxc6 {nothing else works.} Rxc6 30. Nxd4) 29... Qxe4 {[%emt 0:03:39]} 30. Bd3 {[%emt 0:00:32]} Qc6 {[%emt 0:00:41]} 31. Qc2 {[%emt 0:01:53]} (31. Re1 $142) 31... Bxa3 {[%emt 0:01:46] Black is clearly winning.} 32. Rf1 {[%emt 0:00:57]} Qc5 {[%emt 0:01:17]} 33. Qa4 {[%emt 0:00:56]} Bd7 {[%emt 0:01:27]} 34. Qb3 {[%emt 0:00:09]} g5 {[%emt 0:01:08]} 35. Nxd4 {[%emt 0:01:45]} Qxd4 {[%emt 0:00:18]} 36. Qxa3 {[%emt 0:00:04]} Bc8 {[%emt 0:00:35][%cal Og4f2] And now ...Nxf2! would win.} 37. Bg6 {[%emt 0:00:39]} h4 {[%emt 0:00:23]} 38. c5 {[%emt 0:01:02]} Qxc5 {[%emt 0:00:36]} 39. Qf3 {[%emt 0:00:20]} (39. Qxc5 $142 Rxc5 40. f3) 39... Ne5 {[%emt 0:04:09][%csl LRf3,LRg6] White did not feel at home in the position after the opening.  Weighted Error Value: White=0.92/Black=0.42} 0-1

[Event "Czech Championship 2022"]
[Site "Usti nad Labem"]
[Date "2022.05.20"]
[Round "7.11"]
[White "Finek, Vaclav"]
[Black "Buchcar, Tomas"]
[Result "1-0"]
[ECO "D23"]
[WhiteElo "2410"]
[BlackElo "2183"]
[Annotator "TA"]
[PlyCount "101"]
[EventDate "2022.05.12"]
[EventType "swiss"]
[EventCountry "CZE"]
[SourceTitle "playchess.com"]
[Source "ChessBase"]
[SourceQuality "1"]
[TimeControl "40/5400+30:1800+30"]

{[%evp 16,101,10,16,17,0,18,21,8,10,52,6,43,3,40,33,70,58,60,52,68,62,71,76,86,94,95,92,139,118,162,169,160,156,172,156,157,152,156,152,158,164,162,141,279,200,206,201,207,216,199,213,256,250,373,359,387,387,370,375,383,330,266,163,325,332,327,318,387,0,0,0,0,0,0,0,0,0,391,382,566,545,29986,29987,29986,29986,29992,29993]} 1. c4 {[%emt 0:00:02]} Nf6 {[%emt 0:00:07]} 2. Nf3 {[%emt 0:00:06]} c6 {[%emt 0:00:07]} 3. d4 {[%emt 0:00:09]} d5 {[%emt 0:00:06]} 4. Qc2 {[%emt 0:00:03]} dxc4 {[%emt 0:00:06]} 5. Qxc4 {[%emt 0:00:05]} Bf5 {[%emt 0:00:06]} 6. g3 {[%emt 0:00:08]} e6 {[%emt 0:00:14]} 7. Bg2 {[%emt 0:00:06]} Nbd7 {[%emt 0:00:08]} 8. O-O {[%emt 0:00:06]} Be7 {[%emt 0:00:08]} 9. e3 {[%emt 0:00:11]} O-O {[%emt 0:00:09] D23: Queen's Gambit Accepted: 3 Nf3 Nf6 sidelines.} 10. Qe2 $1 {[%emt 0:00:06] 10.Qe2 scores better than 10.Rd1.} Rc8 {[%emt 0:02:27]} 11. Nc3 {[%emt 0:00:12]} Bg6 {[%emt 0:06:18] The position is equal.} 12. Rd1 {[%emt 0:07:00] [#]} Re8 $146 {[%emt 0:05:15]} ({Predecessor:} 12... b5 13. b3 b4 14. Na4 Ne4 15. Bb2 Qa5 16. Rac1 c5 17. Ne5 Nxe5 18. dxe5 Rfd8 19. Qc4 Nd2 20. Qe2 Ne4 21. Qc4 Nd2 22. Qe2 Ne4 {½-½ (22) Xu,Z (2515)-Kacharava,N (2453) Chess.com INT 2021}) 13. h3 {[%emt 0:03:50]} (13. e4 $14) 13... b5 {[%emt 0:00:31]} 14. a3 {[%emt 0:04:35]} Qc7 {[%emt 0:04:05]} 15. Nh4 {[%emt 0:01:44]} a6 {[%emt 0:02:22]} 16. Nxg6 {[%emt 0:01:33]} hxg6 {[%emt 0:00:02]} 17. e4 {[%emt 0:06:51][%cal Be3e4,Be4e5][%mdl 32]} e5 {[%emt 0:00:53]} 18. dxe5 {[%emt 0:01:26]} Nxe5 {[%emt 0:00:13]} 19. f4 {[%emt 0:01:32]} Bc5+ {[%emt 0:00:37]} 20. Kh2 {[%emt 0:01:00]} Nc4 {[%emt 0:03:30]} 21. e5 {[%emt 0:05:05]} g5 {[%emt 0:24:01] [#]} (21... Nb6 $142) 22. Qf3 $1 $16 {[%emt 0:05:33]} g4 {[%emt 0:03:42]} 23. hxg4 {[%emt 0:05:23]} Rxe5 {[%emt 0:00:30][%cal Oc4e3]} 24. g5 {[%emt 0:01:41]} ({But not} 24. fxe5 $2 Nxe5 25. Kh3 Nxf3 26. Bxf3 Bd6 $19) 24... Rxg5 {[%emt 0:03:12]} 25. fxg5 {[%emt 0:02:32]} Ne5 {[%emt 0:00:30] [#] Strongly threatening ...Nfg4+.} 26. gxf6 {[%emt 0:01:27]} Nxf3+ {[%emt 0:00:07]} 27. Bxf3 {[%emt 0:00:04]} Bd6 {[%emt 0:01:17] Prevents Bf4.} 28. Ne4 {[%emt 0:09:57][%cal Bc3e4,Be4f6,Bf6h5][%mdl 32]} Be5 {[%emt 0:00:42] [#]} 29. Bg5 {[%emt 0:00:10]} gxf6 {[%emt 0:03:52]} (29... Rd8 $16 30. Rxd8+ Qxd8) 30. Bxf6 {[%emt 0:02:40]} Bxf6 {[%emt 0:00:17]} 31. Nxf6+ {[%emt 0:00:16]} Kg7 {[%emt 0:00:08]} 32. Nh5+ {[%emt 0:02:31]} Kf8 {[%emt 0:00:04]} 33. Rac1 {[%emt 0:02:27]} Qe5 {[%emt 0:00:10]} 34. Rc2 {[%emt 0:00:45]} c5 {[%emt 0:01:37]} (34... Qg5 $142 35. Nf4 Qf5) 35. Rd5 $18 {[%emt 0:01:55]} Qe3 {[%emt 0:00:20]} 36. Kg2 {[%emt 0:00:17]} c4 {[%emt 0:00:34]} 37. Re2 {[%emt 0:01:22]} Qb6 {[%emt 0:00:43]} 38. Rd7 {[%emt 0:02:27]} Re8 {[%emt 0:01:46] Hoping for ...Rxe2+.} 39. Rf2 {[%emt 0:02:47]} Re7 $2 {[%emt 0:02:12]} (39... Rd8 40. Rd5 Qa5) 40. Rd5 {[%emt 0:01:27]} Re1 {[%emt 0:04:54]} 41. Rf5 {[%emt 0:33:22]} Qe3 {[%emt 0:34:15]} 42. g4 $2 {[%emt 0:06:10]} ({Weaker is} 42. Bd5 Re2 43. Rxf7+ Ke8 44. Ng7+ Kd8 45. Ne6+ Kc8 46. Rxe2 Qxe2+ 47. Rf2 Qe1 $18) (42. Bc6 $18 Ke7 43. Rxf7+ Kd6 44. R7f6+ Ke7 45. Ng7) 42... Rh1 $1 $11 {[%emt 0:07:40]} 43. Ng3 {[%emt 0:00:00]} Rh2+ {[%emt 0:00:00][%mdl 64] Decoy} 44. Kxh2 {[%emt 0:00:03] Threatening mate with Bd5.} Qxf2+ {[%emt 0:00:00]} 45. Kh3 {[%emt 0:00:03] aiming for g5.} Qxb2 {[%emt 0:00:00] Threatens to win with ...c3.} 46. g5 {[%emt 0:00:16] And now g6 would win.} Qh8+ $2 {[%emt 0:00:00][%mdl 8192]} (46... Ke8 $11 {and Black stays safe.} 47. Bc6+ Ke7) 47. Bh5 $18 {[%emt 0:02:13]} Kg8 {[%emt 0:00:00]} (47... f6 {was called for.} 48. Kg2 (48. Rxf6+ Ke7 $16) (48. gxf6 c3 $16) 48... Qh7 49. Rxf6+ Kg8) 48. Rxf7 {[%emt 0:01:27] Black must now prevent Rd7.} Qe5 {[%emt 0:00:36]} 49. Nf5 {[%emt 0:03:59] White mates.} Qe6 {[%emt 0:02:03]} 50. Rf6 {[%emt 0:03:22]} Qd7 {[%emt 0:00:59]} 51. Bf7+ {[%emt 0:00:27] Weighted Error Value: White=0.17 (very precise) /Black=0.65} 1-0

[Event "Czech Championship 2022"]
[Site "Usti nad Labem"]
[Date "2022.05.20"]
[Round "7.12"]
[White "Mica, Marek"]
[Black "Pokrupa, Marek"]
[Result "1-0"]
[ECO "E71"]
[WhiteElo "2343"]
[BlackElo "2117"]
[Annotator "TA"]
[PlyCount "43"]
[EventDate "2022.05.12"]
[EventType "swiss"]
[EventCountry "CZE"]
[SourceTitle "playchess.com"]
[Source "ChessBase"]
[SourceQuality "1"]
[TimeControl "40/5400+30:1800+30"]

{[%evp 9,43,36,40,23,21,23,36,38,33,25,20,18,37,37,60,31,47,43,51,45,61,50,209,230,229,214,217,229,218,212,649,661,648,638,620,542]} 1. d4 {[%emt 0:00:08]} d6 {[%emt 0:00:06]} 2. c4 {[%emt 0:00:17]} Nf6 {[%emt 0:00:20]} 3. Nc3 {[%emt 0:00:12]} g6 {[%emt 0:00:15]} 4. e4 {[%emt 0:00:08]} Bg7 {[%emt 0:00:04]} 5. h3 {[%emt 0:00:06]} c5 {[%emt 0:08:04]} 6. Nf3 {[%emt 0:00:39] E71: King's Indian: 4 e4 d6 5 h3.} Qa5 {[%emt 0:06:13] Hoping for ...Nxe4.} 7. Bd3 {[%emt 0:04:00]} cxd4 {[%emt 0:00:50]} 8. Nxd4 {[%emt 0:00:14] White is slightly better.} Nc6 {[%emt 0:01:03]} 9. Be3 {[%emt 0:02:44]} Nxd4 {[%emt 0:19:57]} 10. Bxd4 {[%emt 0:00:11]} O-O {[%emt 0:01:09]} 11. O-O {[%emt 0:01:48] [#]} a6 $146 {[%emt 0:13:58]} ({Predecessor:} 11... Be6 12. Rc1 Rfc8 13. b3 a6 14. Qe2 Rab8 15. Ba7 Ra8 16. Bd4 Rab8 17. Ba7 Ra8 18. Bd4 Rab8 {½-½ (18) Martinovic,S (2542)-Lagarde,M (2647) Terme Catez 2021}) 12. a3 {[%emt 0:02:57]} e5 {[%emt 0:03:27]} 13. Be3 {[%emt 0:00:54]} Be6 {[%emt 0:00:15]} 14. Nd5 {[%emt 0:11:06][%cal Bc3d5,Bd5b6,Bb6a8][%mdl 32]} Nd7 {[%emt 0:03:06] Prevents Bb6.} 15. Qe2 {[%emt 0:13:38][%cal Oe3b6] White is more active.} f5 $2 {[%emt 0:07:25] [#] This costs Black the game.} (15... Qd8 $14) 16. Bb6 $1 $18 {[%emt 0:03:01][%mdl 512]} Nxb6 {[%emt 0:02:30]} 17. b4 {[%emt 0:00:08][%mdl 64] Deflection} Qa4 {[%emt 0:22:29] Threatens to win with ...Nxd5.} 18. Nxb6 {[%emt 0:00:33]} Qc6 {[%emt 0:00:03]} 19. Nxa8 {[%emt 0:00:13]} fxe4 $2 {[%emt 0:00:11]} (19... Rxa8 20. Rac1 Rd8) 20. Bxe4 {[%emt 0:00:52][%cal Bd3e4,Be4c6,Bc6b7][%mdl 32] White is clearly winning.} Bxc4 {[%emt 0:00:17]} 21. Bxc6 {[%emt 0:00:22]} Bxe2 {[%emt 0:00:07] [#]} 22. Bxb7 $1 {[%emt 0:00:15] Weighted Error Value: White=0.05 (flawless) /Black=0.61} 1-0

[Event "Czech Championship 2022"]
[Site "Usti nad Labem"]
[Date "2022.05.20"]
[Round "7.13"]
[White "Bokhnak, Timofey"]
[Black "Brejnik, Gustav"]
[Result "0-1"]
[ECO "B13"]
[WhiteElo "2060"]
[BlackElo "2246"]
[Annotator "TA"]
[PlyCount "136"]
[EventDate "2022.05.12"]
[EventType "swiss"]
[EventCountry "CZE"]
[SourceTitle "playchess.com"]
[Source "ChessBase"]
[SourceQuality "1"]
[TimeControl "40/5400+30:1800+30"]

{[%evp 11,136,15,22,17,16,17,20,17,32,31,32,29,46,25,73,62,91,43,109,63,69,66,95,71,71,9,50,40,45,22,23,26,25,25,34,-41,-25,-30,-31,-94,-79,-81,-6,-110,-60,-60,-61,-102,-33,-172,-170,-478,-512,-1101,-1088,-839,-460,-1966,-227,-202,-155,-316,-309,-455,-457,-430,-347,-350,-308,-322,-202,-290,-321,-387,-375,-363,-306,-489,-475,-446,-276,-272,-258,-299,-299,-299,-299,-291,-291,-280,-207,-320,-257,-580,-566,-519,-471,-366,-321,-715,-694,-641,-597,-1285,-1223,-1301,-1255,-4808,-4808,-5487,-4782,-5695,-5677,-5600,-4782,-4782,-4776,-4727,-4391,-2709,-2286,-4980,-4756,-2206,-1546,-1104,-679]} 1. e4 {[%emt 0:00:31]} c6 {[%emt 0:02:55]} 2. d4 {[%emt 0:00:09]} d5 {[%emt 0:00:06]} 3. exd5 {[%emt 0:00:23]} cxd5 {[%emt 0:00:10]} 4. Bd3 {[%emt 0:00:12]} Nc6 {[%emt 0:00:06]} 5. c3 {[%emt 0:00:03]} Qc7 {[%emt 0:00:18]} 6. Ne2 {[%emt 0:00:22]} Bg4 {[%emt 0:00:11]} 7. O-O {[%emt 0:00:16] B13: Caro-Kann: Exchange Variation and Panov-Botvinnik Attack.} Nf6 {[%emt 0:00:47]} 8. Qe1 {[%emt 0:01:06]} e6 {[%emt 0:00:32]} 9. h3 {[%emt 0:01:14] The position is equal.} Bxe2 {[%emt 0:04:56]} 10. Qxe2 {[%emt 0:00:12]} Bd6 {[%emt 0:00:08]} 11. Nd2 {[%emt 0:01:43] [#]} g5 $146 {[%emt 0:14:49]} ({Predecessor:} 11... O-O 12. Nf3 Bf4 13. Re1 Rac8 14. g3 Bxc1 15. Raxc1 Rfe8 16. Kg2 a6 17. h4 h6 {1-0 (62) Socko,M (2456)-Houska,J (2374) Germany 2015}) 12. Nf3 {[%emt 0:04:56]} g4 {[%emt 0:03:33]} (12... h6 $11) 13. hxg4 $16 {[%emt 0:02:49]} Nxg4 {[%emt 0:04:36]} 14. Ng5 {[%emt 0:10:08]} (14. Bg5 $16) 14... Nf6 {[%emt 0:22:48]} (14... h5 $1 $14) 15. Qf3 {[%emt 0:02:13]} (15. Re1 $1 $16) 15... Qe7 $14 {[%emt 0:03:12]} 16. Re1 {[%emt 0:01:06]} O-O-O {[%emt 0:04:38]} 17. Nh3 {[%emt 0:09:53]} h6 {[%emt 0:03:37] Against Bg5} 18. b4 {[%emt 0:02:00]} (18. Bf4 $16) 18... Kb8 {[%emt 0:02:07]} 19. Bf4 {[%emt 0:01:56]} Bxf4 {[%emt 0:00:41]} 20. Qxf4+ {[%emt 0:02:12]} (20. Nxf4 $5 {[%cal Ra2a4]} Rhg8 21. a4 $11) 20... Ka8 {[%emt 0:00:08]} 21. a4 {[%emt 0:02:22]} Rdg8 {[%emt 0:02:33]} 22. Qf3 {[%emt 0:11:58]} Rg4 {[%emt 0:02:03]} 23. Bf5 {[%emt 0:06:20]} (23. a5 $1 $14) 23... Rg7 {[%emt 0:01:27]} 24. Nf4 {[%emt 0:07:26]} Qd6 {[%emt 0:00:46]} 25. Bd3 {[%emt 0:02:55]} (25. Bh3 $15 Ne4 26. Rxe4 dxe4 27. Qxe4) 25... Rhg8 $17 {[%emt 0:02:12]} 26. b5 {[%emt 0:02:47]} Na5 {[%emt 0:01:31]} (26... Ne7 $17) 27. Re5 {[%emt 0:01:23]} (27. g3 $1 $11 {remains equal.}) 27... Nb3 {[%emt 0:07:17] Pair of Knights!} (27... Qc7 $1 $17 {[%cal Rc7c3]} 28. Rc1 Rg4) 28. Rd1 $15 {[%emt 0:00:32] [#]} Nc5 $1 $36 {[%emt 0:00:17][%cal Og7g4][%mdl 2048] Black has some pressure.} 29. a5 {[%emt 0:06:31]} (29. g3 Ncd7) 29... Nce4 {[%emt 0:01:32]} ({Black should try} 29... Ncd7 $17 30. Re3 Rg4) 30. Bxe4 {[%emt 0:02:03]} (30. c4 $15) 30... dxe4 $19 {[%emt 0:02:31]} (30... Nxe4 31. a6 $17) 31. Qe2 {[%emt 0:01:08]} (31. Rxe4 Nxe4 32. Qxe4) 31... Nd5 {[%emt 0:01:02]} 32. Nxd5 {[%emt 0:06:26]} (32. Qxe4 $142 Nxc3 33. Qf3 Nxd1 34. a6) 32... Rxg2+ {[%emt 0:00:08]} (32... exd5 33. f3 $17) 33. Kh1 {[%emt 0:00:09]} exd5 {[%emt 0:00:16]} 34. Qh5 {[%emt 0:00:18]} (34. Re8+ $142 Rxe8 35. Kxg2) 34... Rxf2 $2 {[%emt 0:03:18]} (34... Qd8 {( -> ...R2g4)} 35. Qxh6 R2g6) 35. Rg1 {[%emt 0:00:25]} Rc8 {[%emt 0:04:10]} 36. Qg4 $2 {[%emt 0:03:57] This move loses the game for White.} (36. Rxd5 $17 {was necessary.} Rh2+ 37. Qxh2 Qxd5 38. Qe5) 36... Rd8 {[%emt 0:00:16]} 37. Rg2 {[%emt 0:01:12]} (37. a6 $142) 37... Rf1+ {[%emt 0:00:26]} 38. Rg1 {[%emt 0:00:08]} Rf3 {[%emt 0:00:49]} 39. c4 {[%emt 0:00:43]} dxc4 {[%emt 0:03:45]} 40. Qxe4 {[%emt 0:00:07]} Rh3+ {[%emt 0:02:19][%cal Bf3h3,Bh3h4,Bh4d4,Bd4d2][%mdl 32]} 41. Kg2 {[%emt 0:30:01]} f5 {[%emt 0:13:16]} 42. Qxf5 {[%emt 0:00:00]} Rh4 {[%emt 0:01:04] The board is on fire.} (42... Qxd4 $2 43. Kxh3 Qxg1 44. Qf3 $19) 43. Rge1 {[%emt 0:00:00]} Rxd4 {[%emt 0:00:23]} ({But not} 43... Rg8+ $2 44. Kf3 Qd8 45. d5 $19) 44. Re8 {[%emt 0:00:00]} (44. a6 {was the only chance.}) 44... Rd2+ {[%emt 0:00:16]} 45. Kf1 {[%emt 0:00:00]} Qd3+ {[%emt 0:09:51]} 46. Qxd3 {[%emt 0:00:00]} R2xd3 {[%emt 0:00:05][%mdl 4096] Endgame KRR-KRR} 47. R1e4 {[%emt 0:00:00]} Kb8 {[%emt 0:01:16] Threatens to win with ...c3.} 48. Rxd8+ {[%emt 0:00:00]} Rxd8 {[%emt 0:00:01]} 49. Rxc4 {[%emt 0:00:00] KR-KR} Rd5 {[%emt 0:00:17]} 50. Rb4 {[%emt 0:00:00]} Kc7 {[%emt 0:00:56]} 51. Kf2 {[%emt 0:00:00]} (51. Rc4+ {might work better.} Kd6 52. a6) 51... Kd6 {[%emt 0:00:23]} 52. a6 $2 {[%emt 0:00:00]} (52. Ke3 {is a better chance.}) 52... b6 {[%emt 0:01:13] Strongly threatening ...Kc5.} 53. Rf4 {[%emt 0:00:00]} Ke6 {[%emt 0:01:31] Against Rf7. And now ...Rf5 would win.} 54. Re4+ {[%emt 0:00:00]} Re5 {[%emt 0:00:57]} 55. Rc4 {[%emt 0:00:58]} (55. Rg4 Kd6 56. Kf3) 55... Rxb5 {[%emt 0:01:24] Black is clearly winning.} ({Inferior is} 55... Rf5+ 56. Ke3 $11) 56. Rc7 {[%emt 0:00:09] [#]} Rf5+ $1 {[%emt 0:00:12]} 57. Ke3 {[%emt 0:00:06] [#]} Rf7 $1 {[%emt 0:00:05]} ({Worse is} 57... Re5+ 58. Kf4 $15) 58. Rc6+ {[%emt 0:01:03]} Kd5 {[%emt 0:00:30]} 59. Rxh6 {[%emt 0:00:05]} Kc5 {[%emt 0:00:38] aiming for ...Rd7.} 60. Rh5+ {[%emt 0:00:14]} Kc4 {[%emt 0:00:26]} 61. Re5 {[%emt 0:00:23]} Rd7 {[%emt 0:00:11]} 62. Rh5 {[%emt 0:00:40]} Rd3+ {[%emt 0:00:33]} 63. Ke2 {[%emt 0:00:27]} Ra3 {[%emt 0:00:09]} 64. Kd2 {[%emt 0:00:25]} Rxa6 {[%emt 0:00:13]} 65. Rh4+ {[%emt 0:00:06]} Kb3 {[%emt 0:00:18]} 66. Rh3+ {[%emt 0:00:11]} Kb2 {[%emt 0:00:05]} 67. Rh5 {[%emt 0:00:12]} Ra5 {[%emt 0:00:19]} 68. Rh4 {[%emt 0:00:08]} Rd5+ {[%emt 0:00:37] Weighted Error Value: White=1.03/Black=0.39} 0-1

[Event "Czech Championship 2022"]
[Site "Usti nad Labem"]
[Date "2022.05.20"]
[Round "7.14"]
[White "Vojta, Jakub"]
[Black "Soucek, Petr"]
[Result "1/2-1/2"]
[ECO "A29"]
[WhiteElo "2396"]
[BlackElo "2177"]
[Annotator "TA"]
[PlyCount "61"]
[EventDate "2022.05.12"]
[EventType "swiss"]
[EventCountry "CZE"]
[SourceTitle "playchess.com"]
[Source "ChessBase"]
[SourceQuality "1"]
[TimeControl "40/5400+30:1800+30"]

{[%evp 19,61,0,4,0,14,0,0,-9,0,19,18,-9,-6,-10,-9,-9,-5,-1,-13,-13,-5,-9,8,8,8,10,8,8,8,10,7,10,7,7,10,2,4,0,0,0,5,0,3,5]} 1. c4 {[%emt 0:00:04]} e5 {[%emt 0:00:21]} 2. g3 {[%emt 0:00:20]} Nf6 {[%emt 0:00:17]} 3. Bg2 {[%emt 0:00:06]} d5 {[%emt 0:00:06]} 4. cxd5 {[%emt 0:00:03]} Nxd5 {[%emt 0:00:05]} 5. Nc3 {[%emt 0:00:17]} Nb6 {[%emt 0:00:05]} 6. Nf3 {[%emt 0:00:09]} Nc6 {[%emt 0:00:08]} 7. O-O {[%emt 0:00:06]} Be7 {[%emt 0:01:27]} 8. b3 {[%emt 0:01:59]} O-O {[%emt 0:00:29]} 9. Bb2 {[%emt 0:00:04]} Re8 {[%emt 0:00:53]} 10. Rc1 {[%emt 0:02:09]} Bf8 {[%emt 0:01:21] The position is equal.} 11. d3 {[%emt 0:03:02] 11.Ne4 injects fresh life into this line. A29: English Opening: Four Knights Variation with 4 g3.} a5 {[%emt 0:04:40]} 12. Nd2 {[%emt 0:08:00]} Be6 {[%emt 0:10:32]} 13. Nc4 {[%emt 0:00:55]} (13. Bxc6 $5 bxc6 14. Qc2 $11) 13... f6 {[%emt 0:16:09]} 14. Nxb6 {[%emt 0:17:46]} cxb6 {[%emt 0:00:26] [#]} 15. Qd2 $146 {[%emt 0:00:01]} ({Predecessor:} 15. e3 Qd7 16. Na4 Rad8 17. d4 exd4 18. Nxb6 Qd6 {½-½ (18) Vaillant,F (2168)-Pedersen,S (2132) ICCF email 2015}) 15... Bb4 {[%emt 0:13:30]} 16. e3 {[%emt 0:10:25]} Bxc3 {[%emt 0:12:48]} 17. Bxc3 {[%emt 0:03:51]} ({Of course not} 17. Qxc3 Nb4 18. Rb1 (18. Bxb7 $2 Ra7 $19) 18... Nxa2 $17) 17... Bd5 {[%emt 0:01:46]} 18. Rfd1 {[%emt 0:08:06]} Bxg2 {[%emt 0:00:39]} 19. Kxg2 {[%emt 0:00:01]} Qd5+ {[%emt 0:01:23]} 20. e4 {[%emt 0:06:02]} Qb5 {[%emt 0:05:15]} 21. Qe3 {[%emt 0:01:33]} Rad8 {[%emt 0:04:54]} 22. d4 {[%emt 0:02:51]} exd4 {[%emt 0:02:51]} 23. Bxd4 {[%emt 0:00:04]} Qb4 {[%emt 0:08:34][%cal Rd8d4]} 24. Bxb6 {[%emt 0:06:12]} Rxd1 {[%emt 0:00:33]} 25. Rxd1 {[%emt 0:00:05][%cal Bc1d1,Bd1d7,Bd7b7][%mdl 32]} Qxe4+ {[%emt 0:05:03]} 26. Qxe4 {[%emt 0:00:02]} (26. Kg1 {seems wilder.} Re5 27. Qxe4 Rxe4 28. Kf1) 26... Rxe4 $11 {[%emt 0:00:09][%cal Be8e4,Be4a4,Ba4a2][%mdl 32] KRB-KRN} 27. Rd7 {[%emt 0:05:52]} a4 {[%emt 0:02:36]} 28. bxa4 {[%emt 0:00:24]} Rxa4 {[%emt 0:00:16]} 29. Rxb7 {[%emt 0:00:11] next Rc7 is good for White.} Rxa2 {[%emt 0:00:06]} 30. Be3 {[%emt 0:00:12]} Ne5 {[%emt 0:00:12]} 31. h3 {[%emt 0:00:18] An interesting draw.  Weighted Error Value: White=0.04 (flawless) /Black=0.02 (flawless)} 1/2-1/2